[Event "Titled Tuesday Blitz May 03 Early 2022"]
[White "Baches Garcia, Guillermo"]
[Black "Vasquez Schroeder, Rodrigo"]
[WhiteFideId "2209764"]
[BlackFideId "3400042"]
[WhiteElo "2518"]
[BlackElo "2882"]
[Result "0-1"]
[Round "03"]
[TimeControl "180+1"]
[Date "2022.05.03"]
[WhiteClock "0:00:01"]
[BlackClock "0:01:09"]

1. e4 {[%clk 0:03:00]}  c5 {[%clk 0:02:59]} 2. Nf3 {[%clk 0:03:00]}  d6 {[%clk 0:03:00]} 3. d4 {[%clk 0:03:01]}  cxd4 {[%clk 0:03:00]} 4. Nxd4 {[%clk 0:03:02]}  Nf6 {[%clk 0:03:00]} 5. Nc3 {[%clk 0:03:02]}  a6 {[%clk 0:02:59]} 6. Bd3 {[%clk 0:03:03]}  Nc6 {[%clk 0:02:58]} 7. Nxc6 {[%clk 0:03:02]}  bxc6 {[%clk 0:02:58]} 8. b3 {[%clk 0:03:03]}  g6 {[%clk 0:02:57]} 9. Bb2 {[%clk 0:03:03]}  Bg7 {[%clk 0:02:58]} 10. Na4 {[%clk 0:02:57]}  O-O {[%clk 0:02:54]} 11. O-O {[%clk 0:02:57]}  e5 {[%clk 0:02:50]} 12. c4 {[%clk 0:02:54]}  Qc7 {[%clk 0:02:41]} 13. Rc1 {[%clk 0:02:49]}  Rb8 {[%clk 0:02:37]} 14. h3 {[%clk 0:02:41]}  Re8 {[%clk 0:02:33]} 15. Qd2 {[%clk 0:02:34]}  Nh5 {[%clk 0:02:26]} 16. Rfd1 {[%clk 0:02:30]}  Nf4 {[%clk 0:02:25]} 17. Bf1 {[%clk 0:02:29]}  Rd8 {[%clk 0:02:22]} 18. Rc3 {[%clk 0:02:15]}  Ne6 {[%clk 0:02:11]} 19. Rd3 {[%clk 0:02:12]}  Nd4 {[%clk 0:02:08]} 20. Nc3 {[%clk 0:02:01]}  Bb7 {[%clk 0:02:02]} 21. Ne2 {[%clk 0:01:56]}  c5 {[%clk 0:02:02]} 22. Nxd4 {[%clk 0:01:44]}  exd4 {[%clk 0:02:01]} 23. Re1 {[%clk 0:01:40]}  Re8 {[%clk 0:02:01]} 24. f3 {[%clk 0:01:13]}  Qe7 {[%clk 0:01:59]} 25. Qf4 {[%clk 0:00:54]}  f5 {[%clk 0:01:54]} 26. Rdd1 {[%clk 0:00:49]}  fxe4 {[%clk 0:01:48]} 27. fxe4 {[%clk 0:00:48]}  Rf8 {[%clk 0:01:38]} 28. Qg4 {[%clk 0:00:40]}  Rbe8 {[%clk 0:01:37]} 29. Bd3 {[%clk 0:00:40]}  Bc8 {[%clk 0:01:35]} 30. Qe2 {[%clk 0:00:35]}  Qh4 {[%clk 0:01:34]} 31. Rf1 {[%clk 0:00:32]}  Be5 {[%clk 0:01:32]} 32. Rxf8+ {[%clk 0:00:26]}  Rxf8 {[%clk 0:01:33]} 33. Rf1 {[%clk 0:00:26]}  Rxf1+ {[%clk 0:01:33]} 34. Qxf1 {[%clk 0:00:20]}  Qg3 {[%clk 0:01:33]} 35. Qf2 {[%clk 0:00:17]}  Qg5 {[%clk 0:01:28]} 36. b4 {[%clk 0:00:08]}  Bf4 {[%clk 0:01:22]} 37. Qf3 {[%clk 0:00:06]}  Be3+ {[%clk 0:01:20]} 38. Kh2 {[%clk 0:00:06]}  cxb4 {[%clk 0:01:12]} 39. a3 {[%clk 0:00:01]}  b3 {[%clk 0:01:09]} 0-1


[Site "https://www.chess.com"]

[Event "Titled Tuesday Blitz May 03 Early 2022"]
[White "Barp, Alberto"]
[Black "Mammadzada, Gunay"]
[WhiteFideId "872555"]
[BlackFideId "13403729"]
[WhiteElo "2229"]
[BlackElo "2242"]
[Result "1-0"]
[Round "03"]
[TimeControl "180+1"]
[Date "2022.05.03"]
[WhiteClock "0:02:14"]
[BlackClock "0:01:21"]

1. d4 {[%clk 0:03:00]}  d5 {[%clk 0:02:54]} 2. Nf3 {[%clk 0:02:58]}  Nf6 {[%clk 0:02:54]} 3. Bf4 {[%clk 0:02:59]}  c5 {[%clk 0:02:53]} 4. e3 {[%clk 0:02:59]}  e6 {[%clk 0:02:53]} 5. Nbd2 {[%clk 0:02:59]}  Nc6 {[%clk 0:02:50]} 6. c3 {[%clk 0:02:58]}  Bd6 {[%clk 0:02:45]} 7. Bg3 {[%clk 0:02:59]}  O-O {[%clk 0:02:44]} 8. Bd3 {[%clk 0:02:59]}  Qc7 {[%clk 0:02:44]} 9. dxc5 {[%clk 0:02:57]}  Bxg3 {[%clk 0:02:39]} 10. hxg3 {[%clk 0:02:58]}  e5 {[%clk 0:02:40]} 11. e4 {[%clk 0:02:48]}  Rd8 {[%clk 0:02:36]} 12. Qe2 {[%clk 0:02:40]}  Bg4 {[%clk 0:02:21]} 13. exd5 {[%clk 0:02:38]}  Rxd5 {[%clk 0:02:20]} 14. Ne4 {[%clk 0:02:38]}  Nd7 {[%clk 0:01:42]} 15. Bc4 {[%clk 0:02:15]}  Rxc5 {[%clk 0:01:28]} 16. Bxf7+ {[%clk 0:02:15]}  Kxf7 {[%clk 0:01:21]} 17. Nfg5+ {[%clk 0:02:14]} 1-0


[Site "https://www.chess.com"]

[Event "Titled Tuesday Blitz May 03 Early 2022"]
[White "Bashirli, Saadat"]
[Black "Khamdamova, Afruza"]
[WhiteFideId "13429990"]
[BlackFideId "14210444"]
[WhiteElo "1173"]
[BlackElo "1660"]
[Result "0-1"]
[Round "03"]
[TimeControl "180+1"]
[Date "2022.05.03"]
[WhiteClock "0:00:04"]
[BlackClock "0:01:46"]

1. d4 {[%clk 0:03:00]}  Nf6 {[%clk 0:02:59]} 2. Bg5 {[%clk 0:02:59]}  Ne4 {[%clk 0:02:58]} 3. Bf4 {[%clk 0:02:58]}  d5 {[%clk 0:02:59]} 4. c4 {[%clk 0:02:53]}  e6 {[%clk 0:02:57]} 5. a3 {[%clk 0:02:48]}  c5 {[%clk 0:02:56]} 6. e3 {[%clk 0:02:48]}  Nc6 {[%clk 0:02:54]} 7. Nf3 {[%clk 0:02:42]}  cxd4 {[%clk 0:02:50]} 8. exd4 {[%clk 0:02:41]}  Be7 {[%clk 0:02:36]} 9. cxd5 {[%clk 0:02:36]}  exd5 {[%clk 0:02:35]} 10. Bd3 {[%clk 0:02:18]}  O-O {[%clk 0:02:35]} 11. O-O {[%clk 0:02:17]}  Bg4 {[%clk 0:02:35]} 12. h3 {[%clk 0:02:11]}  Bxf3 {[%clk 0:02:32]} 13. Qxf3 {[%clk 0:02:12]}  Nxd4 {[%clk 0:02:30]} 14. Qe3 {[%clk 0:01:57]}  Nf5 {[%clk 0:02:30]} 15. Qf3 {[%clk 0:01:53]}  Nh4 {[%clk 0:02:29]} 16. Qe2 {[%clk 0:01:45]}  f5 {[%clk 0:02:26]} 17. f3 {[%clk 0:01:41]}  Bc5+ {[%clk 0:02:23]} 18. Kh2 {[%clk 0:01:36]}  Nf6 {[%clk 0:02:16]} 19. Qe6+ {[%clk 0:01:31]}  Kh8 {[%clk 0:02:16]} 20. Qe2 {[%clk 0:01:03]}  Bd6 {[%clk 0:02:13]} 21. Bxd6 {[%clk 0:00:53]}  Qxd6+ {[%clk 0:02:13]} 22. Kh1 {[%clk 0:00:52]}  Nh5 {[%clk 0:02:11]} 23. Kg1 {[%clk 0:00:41]}  Ng3 {[%clk 0:02:11]} 24. Qf2 {[%clk 0:00:36]}  Nxf1 {[%clk 0:02:07]} 25. Qxf1 {[%clk 0:00:28]}  Rae8 {[%clk 0:02:03]} 26. Nc3 {[%clk 0:00:28]}  Qg3 {[%clk 0:02:00]} 27. Nxd5 {[%clk 0:00:24]}  Rd8 {[%clk 0:01:58]} 28. Bc4 {[%clk 0:00:23]}  b5 {[%clk 0:01:55]} 29. Bb3 {[%clk 0:00:21]}  Rfe8 {[%clk 0:01:53]} 30. Rd1 {[%clk 0:00:19]}  h6 {[%clk 0:01:51]} 31. Ba2 {[%clk 0:00:09]}  a5 {[%clk 0:01:47]} 32. Qxb5 {[%clk 0:00:04]}  Qxg2# {[%clk 0:01:46]} 0-1


[Site "https://www.chess.com"]

[Event "Titled Tuesday Blitz May 03 Early 2022"]
[White "Begunov, Konstantin"]
[Black "Vokarev, Sergey"]
[WhiteFideId "4118510"]
[BlackFideId "4119711"]
[WhiteElo "2262"]
[BlackElo "2343"]
[Result "0-1"]
[Round "03"]
[TimeControl "180+1"]
[Date "2022.05.03"]
[WhiteClock "0:00:04"]
[BlackClock "0:00:33"]

1. d4 {[%clk 0:02:53]}  d5 {[%clk 0:02:59]} 2. c4 {[%clk 0:02:52]}  dxc4 {[%clk 0:03:00]} 3. Nf3 {[%clk 0:02:51]}  a6 {[%clk 0:02:59]} 4. e3 {[%clk 0:02:51]}  b5 {[%clk 0:02:58]} 5. a4 {[%clk 0:02:51]}  Bb7 {[%clk 0:02:59]} 6. b3 {[%clk 0:02:50]}  e6 {[%clk 0:02:57]} 7. axb5 {[%clk 0:02:41]}  axb5 {[%clk 0:02:57]} 8. Rxa8 {[%clk 0:02:41]}  Bxa8 {[%clk 0:02:57]} 9. bxc4 {[%clk 0:02:41]}  bxc4 {[%clk 0:02:58]} 10. Bxc4 {[%clk 0:02:41]}  Nf6 {[%clk 0:02:59]} 11. O-O {[%clk 0:02:27]}  Be7 {[%clk 0:02:58]} 12. Qa4+ {[%clk 0:02:18]}  Nbd7 {[%clk 0:02:58]} 13. Ne5 {[%clk 0:02:10]}  O-O {[%clk 0:02:57]} 14. Nc6 {[%clk 0:02:07]}  Nb6 {[%clk 0:02:54]} 15. Nxe7+ {[%clk 0:01:36]}  Qxe7 {[%clk 0:02:54]} 16. Ba3 {[%clk 0:01:37]}  Nxa4 {[%clk 0:02:30]} 17. Bxe7 {[%clk 0:01:36]}  Rb8 {[%clk 0:02:30]} 18. Nd2 {[%clk 0:01:23]}  Nd5 {[%clk 0:02:29]} 19. Ba3 {[%clk 0:01:17]}  Ndc3 {[%clk 0:02:14]} 20. Rc1 {[%clk 0:01:04]}  Bd5 {[%clk 0:02:11]} 21. Bd3 {[%clk 0:00:59]}  f5 {[%clk 0:02:09]} 22. f3 {[%clk 0:00:56]}  Ba8 {[%clk 0:01:25]} 23. Kf2 {[%clk 0:00:49]}  Kf7 {[%clk 0:01:09]} 24. e4 {[%clk 0:00:38]}  fxe4 {[%clk 0:01:02]} 25. Nxe4 {[%clk 0:00:37]}  Nd5 {[%clk 0:00:55]} 26. Ng5+ {[%clk 0:00:19]}  Ke8 {[%clk 0:00:50]} 27. Bxh7 {[%clk 0:00:18]}  Rb3 {[%clk 0:00:48]} 28. Bg6+ {[%clk 0:00:17]}  Kd7 {[%clk 0:00:47]} 29. Bc5 {[%clk 0:00:16]}  Nf4 {[%clk 0:00:41]} 30. Be4 {[%clk 0:00:15]}  Bxe4 {[%clk 0:00:40]} 31. Rc4 {[%clk 0:00:11]}  Bc6 {[%clk 0:00:37]} 32. Nf7 {[%clk 0:00:06]}  Nd3+ {[%clk 0:00:33]} 33. Kg3 {[%clk 0:00:04]}  Rc3 {[%clk 0:00:33]} 0-1


[Site "https://www.chess.com"]

[Event "Titled Tuesday Blitz May 03 Early 2022"]
[White "Bongo Akanga Ndjila, Barthelemy"]
[Black "Fernandez Siles, Luis"]
[WhiteFideId "10609431"]
[BlackFideId "2209420"]
[WhiteElo "1768"]
[BlackElo "2212"]
[Result "0-1"]
[Round "03"]
[TimeControl "180+1"]
[Date "2022.05.03"]
[WhiteClock "0:00:58"]
[BlackClock "0:00:43"]

1. d4 {[%clk 0:03:00]}  Nf6 {[%clk 0:02:59]} 2. c4 {[%clk 0:03:00]}  g6 {[%clk 0:03:00]} 3. Nc3 {[%clk 0:03:00]}  Bg7 {[%clk 0:02:58]} 4. e4 {[%clk 0:02:59]}  d6 {[%clk 0:02:58]} 5. Be2 {[%clk 0:02:59]}  O-O {[%clk 0:02:58]} 6. Nf3 {[%clk 0:03:00]}  c5 {[%clk 0:02:58]} 7. d5 {[%clk 0:02:58]}  e6 {[%clk 0:02:56]} 8. O-O {[%clk 0:02:57]}  Na6 {[%clk 0:02:56]} 9. Re1 {[%clk 0:02:51]}  Nc7 {[%clk 0:02:56]} 10. a4 {[%clk 0:02:47]}  b6 {[%clk 0:02:34]} 11. e5 {[%clk 0:02:27]}  dxe5 {[%clk 0:02:26]} 12. d6 {[%clk 0:02:27]}  Nce8 {[%clk 0:02:18]} 13. Nxe5 {[%clk 0:02:23]}  Nxd6 {[%clk 0:01:49]} 14. Bf3 {[%clk 0:02:20]}  Bb7 {[%clk 0:01:50]} 15. Nc6 {[%clk 0:02:17]}  Bxc6 {[%clk 0:01:47]} 16. Bxc6 {[%clk 0:02:16]}  Rc8 {[%clk 0:01:47]} 17. Bf3 {[%clk 0:02:15]}  Nxc4 {[%clk 0:01:46]} 18. Qe2 {[%clk 0:02:13]}  Nd6 {[%clk 0:01:36]} 19. Rd1 {[%clk 0:02:12]}  Qe7 {[%clk 0:01:36]} 20. Bf4 {[%clk 0:02:10]}  Rfd8 {[%clk 0:01:34]} 21. Bg5 {[%clk 0:01:54]}  h6 {[%clk 0:01:28]} 22. Bh4 {[%clk 0:01:53]}  g5 {[%clk 0:01:27]} 23. Bg3 {[%clk 0:01:53]}  Nf5 {[%clk 0:01:27]} 24. Be5 {[%clk 0:01:51]}  Rxd1+ {[%clk 0:00:49]} 25. Rxd1 {[%clk 0:01:49]}  Rd8 {[%clk 0:00:49]} 26. Nb5 {[%clk 0:01:45]}  Nd5 {[%clk 0:00:46]} 27. Bxg7 {[%clk 0:01:38]}  Kxg7 {[%clk 0:00:46]} 28. g4 {[%clk 0:01:33]}  Nd4 {[%clk 0:00:45]} 29. Nxd4 {[%clk 0:01:26]}  cxd4 {[%clk 0:00:41]} 30. Rxd4 {[%clk 0:01:23]}  Qf6 {[%clk 0:00:42]} 31. Bxd5 {[%clk 0:01:15]}  Qxd4 {[%clk 0:00:40]} 32. Bc6 {[%clk 0:01:07]}  Qd1+ {[%clk 0:00:40]} 33. Qxd1 {[%clk 0:01:06]}  Rxd1+ {[%clk 0:00:40]} 34. Kg2 {[%clk 0:01:07]}  Rd4 {[%clk 0:00:41]} 35. f3 {[%clk 0:01:04]}  Rb4 {[%clk 0:00:42]} 36. Kg3 {[%clk 0:01:02]}  Rxb2 {[%clk 0:00:43]} 37. h4 {[%clk 0:01:02]}  f6 {[%clk 0:00:42]} 38. hxg5 {[%clk 0:01:02]}  hxg5 {[%clk 0:00:42]} 39. Bb5 {[%clk 0:00:59]}  Kf7 {[%clk 0:00:42]} 40. f4 {[%clk 0:00:58]}  Rb3+ {[%clk 0:00:42]} 41. Kf2 {[%clk 0:00:58]}  gxf4 {[%clk 0:00:43]} 0-1


[Site "https://www.chess.com"]

[Event "Titled Tuesday Blitz May 03 Early 2022"]
[White "Camacho Collados, Jose"]
[Black "Ismagambetov, Anuar"]
[WhiteFideId "2265427"]
[BlackFideId "13701525"]
[WhiteElo "2351"]
[BlackElo "2487"]
[Result "0-1"]
[Round "03"]
[TimeControl "180+1"]
[Date "2022.05.03"]
[WhiteClock "0:00:01"]
[BlackClock "0:00:36"]

1. c4 {[%clk 0:03:00]}  Nf6 {[%clk 0:02:59]} 2. g3 {[%clk 0:03:01]}  g6 {[%clk 0:03:00]} 3. Bg2 {[%clk 0:03:01]}  Bg7 {[%clk 0:03:01]} 4. Nc3 {[%clk 0:03:01]}  O-O {[%clk 0:03:01]} 5. d3 {[%clk 0:03:01]}  e5 {[%clk 0:02:59]} 6. e4 {[%clk 0:03:01]}  d6 {[%clk 0:02:59]} 7. Nge2 {[%clk 0:03:01]}  Be6 {[%clk 0:02:57]} 8. O-O {[%clk 0:03:00]}  Qd7 {[%clk 0:02:51]} 9. f4 {[%clk 0:02:53]}  Nc6 {[%clk 0:02:46]} 10. Be3 {[%clk 0:02:24]}  Rae8 {[%clk 0:02:41]} 11. Qe1 {[%clk 0:02:09]}  Bg4 {[%clk 0:02:38]} 12. Nd5 {[%clk 0:01:51]}  Nh5 {[%clk 0:02:22]} 13. Rb1 {[%clk 0:01:31]}  a5 {[%clk 0:02:09]} 14. a3 {[%clk 0:01:17]}  exf4 {[%clk 0:01:50]} 15. gxf4 {[%clk 0:01:13]}  f5 {[%clk 0:01:45]} 16. Nec3 {[%clk 0:01:05]}  fxe4 {[%clk 0:01:41]} 17. dxe4 {[%clk 0:01:06]}  Rf7 {[%clk 0:01:27]} 18. Nb5 {[%clk 0:00:57]}  Bh3 {[%clk 0:01:19]} 19. Nbxc7 {[%clk 0:00:53]}  Bxg2 {[%clk 0:01:18]} 20. Kxg2 {[%clk 0:00:50]}  Rxe4 {[%clk 0:01:18]} 21. Qd2 {[%clk 0:00:41]}  Rxc4 {[%clk 0:01:13]} 22. Kh1 {[%clk 0:00:36]}  Qh3 {[%clk 0:01:12]} 23. f5 {[%clk 0:00:21]}  Ng3+ {[%clk 0:01:08]} 24. Kg1 {[%clk 0:00:21]}  Nxf1 {[%clk 0:01:08]} 25. Rxf1 {[%clk 0:00:18]}  Rg4+ {[%clk 0:01:08]} 26. Kf2 {[%clk 0:00:16]}  Rxf5+ {[%clk 0:01:05]} 27. Nf4 {[%clk 0:00:13]}  Rfxf4+ {[%clk 0:00:51]} 28. Bxf4 {[%clk 0:00:13]}  Rg2+ {[%clk 0:00:52]} 29. Ke1 {[%clk 0:00:13]}  Rxd2 {[%clk 0:00:52]} 30. Bxd2 {[%clk 0:00:14]}  Ne5 {[%clk 0:00:48]} 31. Ne8 {[%clk 0:00:08]}  Qe6 {[%clk 0:00:43]} 32. Nxg7 {[%clk 0:00:07]}  Kxg7 {[%clk 0:00:44]} 33. Bc3 {[%clk 0:00:08]}  Kh6 {[%clk 0:00:44]} 34. Kd2 {[%clk 0:00:07]}  Qd5+ {[%clk 0:00:42]} 35. Kc1 {[%clk 0:00:05]}  Qd3 {[%clk 0:00:41]} 36. Rf4 {[%clk 0:00:04]}  g5 {[%clk 0:00:39]} 37. Rd4 {[%clk 0:00:03]}  Qe3+ {[%clk 0:00:39]} 38. Kb1 {[%clk 0:00:03]}  Nf7 {[%clk 0:00:37]} 39. Ka2 {[%clk 0:00:01]}  Kg6 {[%clk 0:00:36]} 0-1


[Site "https://www.chess.com"]

[Event "Titled Tuesday Blitz May 03 Early 2022"]
[White "D`Arruda, Ricardo D."]
[Black "Djokic, Mihailo"]
[WhiteFideId "100692"]
[BlackFideId "976440"]
[WhiteElo "2394"]
[BlackElo "2202"]
[Result "1-0"]
[Round "03"]
[TimeControl "180+1"]
[Date "2022.05.03"]
[WhiteClock "0:00:29"]
[BlackClock "0:00:09"]

1. d4 {[%clk 0:03:00]}  Nf6 {[%clk 0:03:00]} 2. Nf3 {[%clk 0:03:00]}  g6 {[%clk 0:03:00]} 3. g3 {[%clk 0:03:00]}  Bg7 {[%clk 0:02:59]} 4. Bg2 {[%clk 0:03:01]}  O-O {[%clk 0:03:00]} 5. O-O {[%clk 0:03:02]}  d6 {[%clk 0:03:01]} 6. Nc3 {[%clk 0:03:00]}  c5 {[%clk 0:03:00]} 7. dxc5 {[%clk 0:02:59]}  dxc5 {[%clk 0:03:00]} 8. Qxd8 {[%clk 0:02:59]}  Rxd8 {[%clk 0:03:00]} 9. Be3 {[%clk 0:02:59]}  Na6 {[%clk 0:02:56]} 10. Rfd1 {[%clk 0:02:50]}  Bf5 {[%clk 0:02:55]} 11. Nh4 {[%clk 0:02:44]}  Nb4 {[%clk 0:02:14]} 12. Nxf5 {[%clk 0:02:34]}  gxf5 {[%clk 0:02:13]} 13. Bxc5 {[%clk 0:02:28]}  Nxc2 {[%clk 0:01:00]} 14. Bxe7 {[%clk 0:02:09]}  Re8 {[%clk 0:00:48]} 15. Rac1 {[%clk 0:02:04]}  Rxe7 {[%clk 0:00:43]} 16. Rxc2 {[%clk 0:02:04]}  Rc8 {[%clk 0:00:33]} 17. Rcd2 {[%clk 0:02:01]}  Bf8 {[%clk 0:00:24]} 18. Rd8 {[%clk 0:01:42]}  Rc5 {[%clk 0:00:19]} 19. Rb8 {[%clk 0:01:37]}  Re8 {[%clk 0:00:04]} 20. Rxe8 {[%clk 0:01:33]}  Nxe8 {[%clk 0:00:03]} 21. Bxb7 {[%clk 0:01:31]}  Nd6 {[%clk 0:00:03]} 22. Bd5 {[%clk 0:01:29]}  a5 {[%clk 0:00:02]} 23. e3 {[%clk 0:01:27]}  Kg7 {[%clk 0:00:02]} 24. Rd3 {[%clk 0:01:24]}  Be7 {[%clk 0:00:02]} 25. b3 {[%clk 0:01:24]}  Nc8 {[%clk 0:00:02]} 26. Bc4 {[%clk 0:01:21]}  Nb6 {[%clk 0:00:02]} 27. Nd5 {[%clk 0:01:15]}  Nxc4 {[%clk 0:00:01]} 28. Nxe7 {[%clk 0:01:08]}  Nb2 {[%clk 0:00:02]} 29. Rd5 {[%clk 0:01:08]}  Rc1+ {[%clk 0:00:02]} 30. Kg2 {[%clk 0:01:07]}  Kf6 {[%clk 0:00:02]} 31. Nxf5 {[%clk 0:01:04]}  Rc2 {[%clk 0:00:02]} 32. g4 {[%clk 0:00:47]}  Ke6 {[%clk 0:00:02]} 33. Nd4+ {[%clk 0:00:43]}  Kxd5 {[%clk 0:00:02]} 34. Nxc2 {[%clk 0:00:44]}  Nd1 {[%clk 0:00:01]} 35. Kf3 {[%clk 0:00:39]}  Nc3 {[%clk 0:00:02]} 36. a3 {[%clk 0:00:39]}  Ne4 {[%clk 0:00:01]} 37. b4 {[%clk 0:00:37]}  a4 {[%clk 0:00:01]} 38. Ke2 {[%clk 0:00:35]}  Nd2 {[%clk 0:00:01]} 39. Kxd2 {[%clk 0:00:35]}  Kc4 {[%clk 0:00:01]} 40. f4 {[%clk 0:00:34]}  Kb3 {[%clk 0:00:02]} 41. e4 {[%clk 0:00:34]}  Kc4 {[%clk 0:00:03]} 42. Ke3 {[%clk 0:00:33]}  Kb5 {[%clk 0:00:04]} 43. e5 {[%clk 0:00:33]}  Kc6 {[%clk 0:00:04]} 44. Kd4 {[%clk 0:00:33]}  Kd7 {[%clk 0:00:05]} 45. f5 {[%clk 0:00:33]}  f6 {[%clk 0:00:05]} 46. e6+ {[%clk 0:00:33]}  Kd6 {[%clk 0:00:06]} 47. b5 {[%clk 0:00:33]}  h6 {[%clk 0:00:07]} 48. b6 {[%clk 0:00:33]}  Kc6 {[%clk 0:00:07]} 49. e7 {[%clk 0:00:34]}  Kd7 {[%clk 0:00:08]} 50. b7 {[%clk 0:00:33]}  Kc7 {[%clk 0:00:08]} 51. e8=Q {[%clk 0:00:33]}  Kd6 {[%clk 0:00:09]} 52. b8=Q# {[%clk 0:00:29]} 1-0


[Site "https://www.chess.com"]

[Event "Titled Tuesday Blitz May 03 Early 2022"]
[White "Dauner, Benedikt"]
[Black "Van den Dikkenberg, Erik"]
[WhiteFideId "16225899"]
[BlackFideId "1005880"]
[WhiteElo "2230"]
[BlackElo "2118"]
[Result "1-0"]
[Round "03"]
[TimeControl "180+1"]
[Date "2022.05.03"]
[WhiteClock "0:01:34"]
[BlackClock "0:00:55"]

1. d4 {[%clk 0:03:00]}  Nf6 {[%clk 0:02:59]} 2. Nf3 {[%clk 0:03:01]}  g6 {[%clk 0:02:58]} 3. g3 {[%clk 0:03:00]}  Bg7 {[%clk 0:02:55]} 4. Bg2 {[%clk 0:03:01]}  d6 {[%clk 0:02:55]} 5. O-O {[%clk 0:03:01]}  O-O {[%clk 0:02:55]} 6. b3 {[%clk 0:03:02]}  c6 {[%clk 0:02:52]} 7. Bb2 {[%clk 0:03:02]}  Qa5 {[%clk 0:02:52]} 8. Qe1 {[%clk 0:03:00]}  Qh5 {[%clk 0:02:51]} 9. e4 {[%clk 0:02:54]}  Bh3 {[%clk 0:02:47]} 10. Nbd2 {[%clk 0:02:54]}  Ng4 {[%clk 0:02:42]} 11. Qe2 {[%clk 0:02:46]}  Nd7 {[%clk 0:02:37]} 12. Nh4 {[%clk 0:02:44]}  Bxg2 {[%clk 0:02:33]} 13. Kxg2 {[%clk 0:02:44]}  Bh6 {[%clk 0:02:24]} 14. Nhf3 {[%clk 0:02:12]}  e5 {[%clk 0:01:56]} 15. h3 {[%clk 0:02:10]}  f5 {[%clk 0:01:41]} 16. hxg4 {[%clk 0:02:02]}  fxg4 {[%clk 0:01:41]} 17. Nh2 {[%clk 0:01:50]}  Qh3+ {[%clk 0:01:21]} 18. Kg1 {[%clk 0:01:49]}  Bxd2 {[%clk 0:01:19]} 19. Qxd2 {[%clk 0:01:50]}  Rf3 {[%clk 0:01:19]} 20. dxe5 {[%clk 0:01:44]}  Nxe5 {[%clk 0:01:11]} 21. Bxe5 {[%clk 0:01:43]}  dxe5 {[%clk 0:01:11]} 22. Qd7 {[%clk 0:01:38]}  h5 {[%clk 0:00:59]} 23. Nxf3 {[%clk 0:01:37]}  Rf8 {[%clk 0:00:55]} 24. Ng5 {[%clk 0:01:34]} 1-0


[Site "https://www.chess.com"]

[Event "Titled Tuesday Blitz May 03 Early 2022"]
[White "Deac, Bogdan-Daniel"]
[Black "Lehtosaari, Mauri"]
[WhiteFideId "1226380"]
[BlackFideId "501999"]
[WhiteElo "2977"]
[BlackElo "2539"]
[Result "1-0"]
[Round "03"]
[TimeControl "180+1"]
[Date "2022.05.03"]
[WhiteClock "0:01:48"]
[BlackClock "0:00:19"]

1. d4 {[%clk 0:02:58]}  d5 {[%clk 0:02:59]} 2. Nf3 {[%clk 0:02:58]}  Nf6 {[%clk 0:02:59]} 3. c4 {[%clk 0:02:58]}  c6 {[%clk 0:03:00]} 4. Nc3 {[%clk 0:02:58]}  dxc4 {[%clk 0:03:00]} 5. a4 {[%clk 0:02:55]}  Bf5 {[%clk 0:02:59]} 6. Ne5 {[%clk 0:02:54]}  Nbd7 {[%clk 0:02:59]} 7. Nxc4 {[%clk 0:02:54]}  Qc7 {[%clk 0:02:56]} 8. Qd2 {[%clk 0:02:54]}  e6 {[%clk 0:02:42]} 9. f3 {[%clk 0:02:51]}  Bb4 {[%clk 0:02:38]} 10. e4 {[%clk 0:02:51]}  Bg6 {[%clk 0:02:38]} 11. Qf4 {[%clk 0:02:50]}  Qd8 {[%clk 0:01:50]} 12. Nd6+ {[%clk 0:02:46]}  Bxd6 {[%clk 0:01:47]} 13. Qxd6 {[%clk 0:02:47]}  Nb6 {[%clk 0:01:43]} 14. Qc5 {[%clk 0:02:46]}  Qe7 {[%clk 0:01:30]} 15. b4 {[%clk 0:02:39]}  Nfd7 {[%clk 0:01:27]} 16. Qxe7+ {[%clk 0:02:26]}  Kxe7 {[%clk 0:01:28]} 17. Ba3 {[%clk 0:02:21]}  f5 {[%clk 0:01:08]} 18. b5+ {[%clk 0:02:20]}  Kf7 {[%clk 0:01:08]} 19. a5 {[%clk 0:02:20]}  Nc8 {[%clk 0:01:04]} 20. a6 {[%clk 0:02:20]}  bxa6 {[%clk 0:00:59]} 21. bxc6 {[%clk 0:02:20]}  Ndb6 {[%clk 0:00:58]} 22. Bxa6 {[%clk 0:02:18]}  Ne7 {[%clk 0:00:52]} 23. Bb7 {[%clk 0:02:17]}  Rad8 {[%clk 0:00:51]} 24. Bc5 {[%clk 0:02:14]}  Nec8 {[%clk 0:00:45]} 25. O-O {[%clk 0:02:11]}  Rhe8 {[%clk 0:00:43]} 26. Rad1 {[%clk 0:01:59]}  Kg8 {[%clk 0:00:27]} 27. c7 {[%clk 0:01:58]}  Rd7 {[%clk 0:00:25]} 28. Bc6 {[%clk 0:01:57]}  Rxc7 {[%clk 0:00:25]} 29. Bxe8 {[%clk 0:01:57]}  Bxe8 {[%clk 0:00:26]} 30. exf5 {[%clk 0:01:58]}  exf5 {[%clk 0:00:25]} 31. Rfe1 {[%clk 0:01:58]}  Bc6 {[%clk 0:00:22]} 32. Re5 {[%clk 0:01:55]}  g6 {[%clk 0:00:22]} 33. Rde1 {[%clk 0:01:54]}  Kf7 {[%clk 0:00:20]} 34. h4 {[%clk 0:01:50]}  Nc4 {[%clk 0:00:20]} 35. R5e2 {[%clk 0:01:49]}  N8b6 {[%clk 0:00:19]} 36. Re7+ {[%clk 0:01:48]}  Rxe7 {[%clk 0:00:18]} 37. Rxe7+ {[%clk 0:01:49]}  Kf6 {[%clk 0:00:19]} 38. Rxa7 {[%clk 0:01:48]} 1-0


[Site "https://www.chess.com"]